fUSD/lending_fUSD_20260111
["ID","MTS","AMOUNT","RATE_DAILY","PERIOD"]
[401353767,1768151445189,-8749.3289437,0.00017865,2]
[401353769,1768151445199,-453976.5410775,0.00017865,2]
[401353771,1768151445208,-151.0,0.00017865,2]
[401353773,1768151445218,-156.847329,0.00017865,2]
[401353775,1768151445228,-411.11756,0.00017865,2]
[401353777,1768151445237,-411.11756,0.00017865,2]
[401353779,1768151445248,-411.11756,0.00017865,2]
[401353781,1768151445259,-411.11756,0.00017865,2]
[401353783,1768151445268,-151.0,0.00017865,2]
[401353785,1768151445277,-192.27514,0.00017865,2]
[401353787,1768151445287,-305.295665,0.00017865,2]
[401353789,1768151445297,-305.295665,0.00017865,2]
[401353791,1768151445307,-305.295665,0.00017865,2]
[401353793,1768151445316,-305.295665,0.00017865,2]
[401353795,1768151445326,-159.100837,0.00017865,2]
[401353797,1768151445336,-159.100837,0.00017865,2]
[401353799,1768151445345,-159.100837,0.00017865,2]
[401353801,1768151445355,-159.100837,0.00017865,2]
[401353803,1768151445364,-151.0,0.00017865,2]
[401353805,1768151445374,-151.0,0.00017865,2]
[401353807,1768151445384,-151.0,0.00017865,2]
[401353809,1768151445393,-151.0,0.00017865,2]
[401353810,1768151445402,-151.0,0.00017865,2]
[401353812,1768151445412,-182.653178,0.00017865,2]
[401353814,1768151445421,-182.653178,0.00017865,2]
[401353816,1768151445432,-527.093944,0.00017865,2]
[401353818,1768151445441,-182.653178,0.00017865,2]
[401353820,1768151445451,-527.093944,0.00017865,2]
[401353822,1768151445463,-182.653178,0.00017865,2]
[401353825,1768151445472,-527.093944,0.00017865,2]
[401353827,1768151445482,-527.093944,0.00017865,2]
[401353828,1768151445492,-151.0,0.00017865,2]
[401353830,1768151445501,-151.0,0.00017865,2]
[401353833,1768151445511,-151.0,0.00017865,2]
[401353835,1768151445521,-286.94645,0.00017865,2]
[401353837,1768151445530,-151.0,0.00017865,2]
[401353839,1768151445539,-1069.386623,0.00017865,2]
[401353841,1768151445549,-1069.386623,0.00017865,2]
[401353843,1768151445559,-1069.386623,0.00017865,2]
[401353845,1768151445568,-1069.386623,0.00017865,2]
[401353847,1768151445578,-151.0,0.00017865,2]
[401353849,1768151445587,-231.340004,0.00017865,2]
[401353851,1768151445596,-151.0,0.00017865,2]
[401353853,1768151445605,-151.0,0.00017865,2]
[401353855,1768151445614,-520.954239,0.00017865,2]
[401353857,1768151445623,-151.0,0.00017865,2]
[401353859,1768151445632,-334.294396,0.00017865,2]
[401353861,1768151445642,-520.954239,0.00017865,2]
[401353863,1768151445651,-334.294396,0.00017865,2]
[401353865,1768151445660,-520.954239,0.00017865,2]
[401353867,1768151445669,-334.294396,0.00017865,2]
[401353869,1768151445678,-151.0,0.00017865,2]
[401353871,1768151445688,-520.954239,0.00017865,2]
[401353872,1768151445698,-334.294396,0.00017865,2]
[401353875,1768151445709,-151.0,0.00017865,2]
[401353877,1768151445718,-151.0,0.00017865,2]
[401353879,1768151445727,-754.789807,0.00017865,2]
[401353881,1768151445736,-754.789807,0.00017865,2]
[401353882,1768151445745,-754.789807,0.00017865,2]
[401353885,1768151445755,-754.789807,0.00017865,2]
[401353887,1768151445764,-151.0,0.00017865,2]
[401353889,1768151445773,-151.0,0.00017865,2]
[401353891,1768151445783,-151.0,0.00017865,2]
[401353892,1768151445791,-151.0,0.00017865,2]
[401353895,1768151445801,-151.0,0.00017865,2]
[401353898,1768151445811,-151.0,0.00017865,2]
[401353900,1768151445820,-151.0,0.00017865,2]
[401353902,1768151445829,-1664.069994,0.00017865,2]
[401353904,1768151445839,-1664.069994,0.00017865,2]
[401353906,1768151445848,-1664.069994,0.00017865,2]
[401353908,1768151445857,-506.865865,0.00017865,2]
[401353910,1768151445867,-1664.069994,0.00017865,2]
[401353912,1768151445876,-506.865865,0.00017865,2]
[401353914,1768151445885,-151.0,0.00017865,2]
[401353916,1768151445895,-506.865865,0.00017865,2]
[401353918,1768151445903,-151.0,0.00017865,2]
[401353920,1768151445913,-506.865865,0.00017865,2]
[401353922,1768151445922,-680.939729,0.00017865,2]
[401353924,1768151445931,-151.0,0.00017865,2]
[401353926,1768151445941,-680.939729,0.00017865,2]
[401353928,1768151445950,-151.0,0.00017865,2]
[401353930,1768151445964,-680.939729,0.00017865,2]
[401353932,1768151445973,-151.0,0.00017865,2]
[401353934,1768151445983,-680.939729,0.00017865,2]
[401353936,1768151445992,-174.887374,0.00017865,2]
[401353938,1768151446002,-188.904835,0.00017865,2]
[401353940,1768151446011,-188.904835,0.00017865,2]
[401353942,1768151446022,-188.904835,0.00017865,2]
[401353944,1768151446032,-188.904835,0.00017865,2]
[401353945,1768151446041,-292.243279,0.00017865,2]
[401353947,1768151446051,-415.129108,0.00017865,2]
[401353950,1768151446063,-415.129108,0.00017865,2]
[401353952,1768151446073,-415.129108,0.00017865,2]
[401353953,1768151446083,-365.740895,0.00017865,2]
[401353955,1768151446092,-151.0,0.00017865,2]
[401353958,1768151446102,-415.129108,0.00017865,2]
[401353960,1768151446112,-365.740895,0.00017865,2]
[401353962,1768151446122,-151.0,0.00017865,2]
[401353964,1768151446131,-365.740895,0.00017865,2]
[401353966,1768151446141,-365.740895,0.00017865,2]
[401353967,1768151446151,-200.294492,0.00017865,2]
[401353968,1768151446160,-151.0,0.00017865,2]
[401353969,1768151446172,-391.846549,0.00017865,2]
[401353970,1768151446181,-151.0,0.00017865,2]
[401353971,1768151446191,-391.846549,0.00017865,2]
[401353972,1768151446201,-186.823703,0.00017865,2]
[401353973,1768151446211,-391.846549,0.00017865,2]
[401353974,1768151446220,-318.505397,0.00017865,2]
[401353975,1768151446229,-391.846549,0.00017865,2]
[401353976,1768151446240,-318.505397,0.00017865,2]
[401353977,1768151446250,-151.0,0.00017865,2]
[401353978,1768151446259,-654.595373,0.00017865,2]
[401353980,1768151446268,-318.505397,0.00017865,2]
[401353982,1768151446278,-151.0,0.00017865,2]
[401353984,1768151446287,-654.595373,0.00017865,2]
[401353986,1768151446296,-318.505397,0.00017865,2]
[401353988,1768151446306,-151.0,0.00017865,2]
[401353990,1768151446315,-654.595373,0.00017865,2]
[401353992,1768151446325,-151.0,0.00017865,2]
[401353994,1768151446334,-1269.86314,0.00017865,2]
[401353996,1768151446343,-654.595373,0.00017865,2]
[401353998,1768151446352,-1269.86314,0.00017865,2]
[401354000,1768151446362,-1269.86314,0.00017865,2]
[401354002,1768151446371,-151.0,0.00017865,2]
[401354004,1768151446380,-1269.86314,0.00017865,2]
[401354006,1768151446390,-244.883945,0.00017865,2]
[401354008,1768151446399,-244.883945,0.00017865,2]
[401354010,1768151446409,-244.883945,0.00017865,2]
[401354012,1768151446418,-226.601997,0.00017865,2]
[401354014,1768151446428,-244.883945,0.00017865,2]
[401354016,1768151446438,-151.0,0.00017865,2]
[401354018,1768151446448,-151.0,0.00017865,2]
[401354020,1768151446458,-151.0,0.00017865,2]
[401354022,1768151446467,-1765.956881,0.00017865,2]
[401354024,1768151446477,-151.0,0.00017865,2]
[401354026,1768151446487,-1765.956881,0.00017865,2]
[401354028,1768151446497,-1765.956881,0.00017865,2]
[401354030,1768151446507,-1765.956881,0.00017865,2]
[401354032,1768151446516,-151.0,0.00017865,2]
[401354034,1768151446526,-151.0,0.00017865,2]
[401354036,1768151446535,-151.0,0.00017865,2]
[401354038,1768151446544,-151.0,0.00017865,2]
[401354040,1768151446554,-151.0,0.00017865,2]
[401354042,1768151446565,-151.0,0.00017865,2]
[401354044,1768151446574,-151.0,0.00017865,2]
[401354046,1768151446584,-906.513466,0.00017865,2]
[401354048,1768151446594,-906.513466,0.00017865,2]
[401354050,1768151446603,-151.0,0.00017865,2]
[401354052,1768151446612,-2039.220797,0.00017865,2]
[401354055,1768151446623,-906.513466,0.00017865,2]
[401354056,1768151446632,-2039.220797,0.00017865,2]
[401354059,1768151446642,-151.0,0.00017865,2]
[401354061,1768151446651,-906.513466,0.00017865,2]
[401354063,1768151446661,-2039.220797,0.00017865,2]
[401354065,1768151446670,-2039.220797,0.00017865,2]
[401354067,1768151446681,-465.445525,0.00017865,2]
[401354069,1768151446691,-151.0,0.00017865,2]
[401354070,1768151446700,-465.445525,0.00017865,2]
[401354072,1768151446710,-465.445525,0.00017865,2]
[401354074,1768151446719,-282.28364,0.00017865,2]
[401354076,1768151446728,-465.445525,0.00017865,2]
[401354078,1768151446737,-282.28364,0.00017865,2]
[401354080,1768151446747,-282.28364,0.00017865,2]
[401354082,1768151446756,-623.001243,0.00017865,2]
[401354084,1768151446764,-151.0,0.00017865,2]
[401354086,1768151446773,-282.28364,0.00017865,2]
[401354088,1768151446783,-623.001243,0.00017865,2]
[401354090,1768151446792,-623.001243,0.00017865,2]
[401354092,1768151446801,-151.0,0.00017865,2]
[401354094,1768151446810,-623.001243,0.00017865,2]
[401354096,1768151446819,-1580.779284,0.00017865,2]
[401354098,1768151446829,-1580.779284,0.00017865,2]
[401354101,1768151446839,-1580.779284,0.00017865,2]
[401354103,1768151446848,-1580.779284,0.00017865,2]
[401354105,1768151446857,-151.0,0.00017865,2]
[401354107,1768151446866,-151.0,0.00017865,2]
[401354109,1768151446876,-151.0,0.00017865,2]
[401354111,1768151446885,-201.153607,0.00017865,2]
[401354113,1768151446894,-201.153607,0.00017865,2]
[401354115,1768151446905,-438.857825,0.00017865,2]
[401354117,1768151446915,-201.153607,0.00017865,2]
[401354119,1768151446924,-438.857825,0.00017865,2]
[401354121,1768151446934,-201.153607,0.00017865,2]
[401354123,1768151446943,-438.857825,0.00017865,2]
[401354125,1768151446952,-438.857825,0.00017865,2]
[401354127,1768151446961,-151.0,0.00017865,2]
[401354129,1768151446971,-151.0,0.00017865,2]
[401354131,1768151446980,-151.0,0.00017865,2]
[401354133,1768151446989,-151.0,0.00017865,2]
[401354135,1768151446999,-151.0,0.00017865,2]
[401354137,1768151447009,-151.0,0.00017865,2]
[401354139,1768151447018,-165.572138,0.00017865,2]
[401354141,1768151447028,-151.0,0.00017865,2]
[401354143,1768151447037,-165.572138,0.00017865,2]
[401354145,1768151447046,-332.214435,0.00017865,2]
[401354147,1768151447056,-165.572138,0.00017865,2]
[401354149,1768151447065,-332.214435,0.00017865,2]
[401354151,1768151447075,-165.572138,0.00017865,2]
[401354153,1768151447084,-332.214435,0.00017865,2]
[401354155,1768151447094,-332.214435,0.00017865,2]
[401354156,1768151447103,-151.0,0.00017865,2]
[401354158,1768151447112,-573.970445,0.00017865,2]
[401354161,1768151447122,-573.970445,0.00017865,2]
[401354163,1768151447131,-179.284149,0.00017865,2]
[401354165,1768151447141,-573.970445,0.00017865,2]
[401354167,1768151447151,-573.970445,0.00017865,2]
[401354168,1768151447160,-282.912387,0.00017865,2]
[401354171,1768151447172,-1965.222408,0.00017865,2]
[401354173,1768151447182,-542.914314,0.00017865,2]
[401354175,1768151447192,-542.914314,0.00017865,2]
[401354176,1768151447201,-1965.222408,0.00017865,2]
[401354178,1768151447211,-1965.222408,0.00017865,2]
[401354180,1768151447220,-542.914314,0.00017865,2]
[401354183,1768151447229,-1965.222408,0.00017865,2]
[401354184,1768151447239,-542.914314,0.00017865,2]
[401354186,1768151447250,-282.912387,0.00017865,2]
[401354188,1768151447259,-2235.751841,0.00017865,2]
[401354190,1768151447268,-282.912387,0.00017865,2]
[401354193,1768151447278,-2235.751841,0.00017865,2]
[401354195,1768151447288,-282.912387,0.00017865,2]
[401354197,1768151447298,-2235.751841,0.00017865,2]
[401354199,1768151447307,-2235.751841,0.00017865,2]
[401354201,1768151447316,-921.834081,0.00017865,2]
[401354203,1768151447326,-921.834081,0.00017865,2]
[401354205,1768151447335,-921.834081,0.00017865,2]
[401354207,1768151447345,-2068.70979,0.00017865,2]
[401354209,1768151447355,-921.834081,0.00017865,2]
[401354211,1768151447364,-2068.70979,0.00017865,2]
[401354213,1768151447373,-1001.36882,0.00017865,2]
[401354215,1768151447383,-2068.70979,0.00017865,2]
[401354217,1768151447393,-1001.36882,0.00017865,2]
[401354219,1768151447402,-2068.70979,0.00017865,2]
[401354221,1768151447412,-1001.36882,0.00017865,2]
[401354223,1768151447421,-1001.36882,0.00017865,2]
[401354225,1768151447431,-704.160543,0.00017865,2]
[401354227,1768151447441,-704.160543,0.00017865,2]
[401354229,1768151447451,-182.359179,0.00017865,2]
[401354231,1768151447461,-455.569602,0.00017865,2]
[401354233,1768151447470,-704.160543,0.00017865,2]
[401354235,1768151447484,-382.764866,0.00017865,2]
[401354237,1768151447495,-455.569602,0.00017865,2]
[401354239,1768151447506,-704.160543,0.00017865,2]
[401354242,1768151447516,-382.764866,0.00017865,2]
[401354244,1768151447525,-455.569602,0.00017865,2]
[401354246,1768151447535,-382.764866,0.00017865,2]
[401354248,1768151447545,-455.569602,0.00017865,2]
[401354250,1768151447555,-382.764866,0.00017865,2]
[401354252,1768151447565,-4106.764814,0.00017865,2]
[401354254,1768151447575,-153.803305,0.00017865,2]
[401354256,1768151447584,-4106.764814,0.00017865,2]
[401354258,1768151447594,-4106.764814,0.00017865,2]
[401354260,1768151447603,-1018.724913,0.00017865,2]
[401354262,1768151447613,-151.0,0.00017865,2]
[401354264,1768151447623,-4106.764814,0.00017865,2]
[401354266,1768151447633,-1018.724913,0.00017865,2]
[401354268,1768151447642,-151.0,0.00017865,2]
[401354270,1768151447651,-151.0,0.00017865,2]
[401354272,1768151447660,-1018.724913,0.00017865,2]
[401354274,1768151447670,-151.0,0.00017865,2]
[401354276,1768151447679,-275.980319,0.00017865,2]
[401354278,1768151447688,-1018.724913,0.00017865,2]
[401354280,1768151447697,-275.980319,0.00017865,2]
[401354282,1768151447707,-151.0,0.00017865,2]
[401354284,1768151447716,-275.980319,0.00017865,2]
[401354286,1768151447725,-151.0,0.00017865,2]
[401354288,1768151447735,-275.980319,0.00017865,2]
[401354290,1768151447744,-151.0,0.00017865,2]
[401354292,1768151447754,-151.0,0.00017865,2]
[401354294,1768151447763,-1493.308871,0.00017865,2]
[401354296,1768151447772,-241.091622,0.00017865,2]
[401354298,1768151447781,-500.0,0.00017873,2]
[401354300,1768151447790,-500.0,0.00017873,2]
[401354302,1768151447799,-193.74886277,0.00017873,2]
[401354304,1768151447809,-25000.0,0.00017874,3]
[401354306,1768151447819,-1000.0,0.00017879,2]
[401354308,1768151447828,-1552.15,0.0001788,2]
[401354310,1768151447838,-704.160543,0.00017882,2]
[401354312,1768151447848,-704.160543,0.00017882,2]
[401354314,1768151447858,-455.569602,0.00017882,2]
[401354316,1768151447867,-704.160543,0.00017882,2]
[401354318,1768151447877,-382.764866,0.00017882,2]
[401354320,1768151447886,-455.569602,0.00017882,2]
[401354322,1768151447896,-704.160543,0.00017882,2]
[401354324,1768151447906,-382.764866,0.00017882,2]
[401354327,1768151447916,-455.569602,0.00017882,2]
[401354328,1768151447926,-382.764866,0.00017882,2]
[401354331,1768151447935,-455.569602,0.00017882,2]
[401354333,1768151447945,-382.764866,0.00017882,2]
[401354335,1768151447954,-4106.764814,0.00017882,2]
[401354337,1768151447964,-4106.764814,0.00017882,2]
[401354338,1768151447973,-4106.764814,0.00017882,2]
[401354339,1768151447983,-1018.724913,0.00017882,2]
[401354340,1768151447992,-151.0,0.00017882,2]
[401354341,1768151448003,-4106.764814,0.00017882,2]
[401354342,1768151448012,-1018.724913,0.00017882,2]
[401354343,1768151448022,-151.0,0.00017882,2]
[401354344,1768151448031,-151.0,0.00017882,2]
[401354345,1768151448041,-1018.724913,0.00017882,2]
[401354347,1768151448051,-228.553516,0.00017882,2]
[401354349,1768151448060,-275.980319,0.00017882,2]
[401354351,1768151448069,-1018.724913,0.00017882,2]
[401354353,1768151448078,-275.980319,0.00017882,2]
[401354355,1768151448088,-151.0,0.00017882,2]
[401354357,1768151448098,-275.980319,0.00017882,2]
[401354385,1768151448369,-151.0,0.00017882,2]
[401354387,1768151448379,-275.980319,0.00017882,2]
[401354389,1768151448390,-151.0,0.00017882,2]
[401354391,1768151448399,-151.0,0.00017882,2]
[401354394,1768151448410,-1493.308871,0.00017882,2]
[401354395,1768151448419,-25000.0,0.00017882,3]
[401354397,1768151448429,-300.0,0.0001789,2]
[401354400,1768151448439,-300.0,0.0001789,2]
[401354402,1768151448449,-673.04563665,0.0001789,2]
[401354404,1768151448458,-65967.5550342,0.00017891,2]
[401354406,1768151448468,-25000.0,0.00017891,3]
[401354408,1768151448479,-1000.0,0.00017894,2]
[401354410,1768151448488,-1000.0,0.00017896,2]
[401354412,1768151448498,-500.0,0.00017899,2]
[401354414,1768151448508,-300.0,0.00017899,2]
[401354416,1768151448518,-300.0,0.00017899,2]
[401354418,1768151448528,-2327.0,0.000179,2]
[401354420,1768151448537,-252.0713034,0.000179,2]
[401354422,1768151448547,-25000.0,0.000179,3]
[401354423,1768151448556,-10000.0,0.000179,2]
[401354426,1768151448566,-1000.0,0.000179,2]
[401354428,1768151448576,-9506.50782153,0.000179,3]
[401354430,1768151448586,-330.14190427,0.000179,2]
[401354432,1768151448596,-654.04301641,0.000179,2]
[401354434,1768151448606,-654.04301631,0.000179,2]
[401354436,1768151448616,-654.04301631,0.000179,2]
[401354438,1768151448625,-654.04301631,0.000179,2]
[401354440,1768151448635,-654.04301631,0.000179,2]
[401354442,1768151448644,-654.04301631,0.000179,2]
[401354444,1768151448654,-654.04301631,0.000179,2]
[401354446,1768151448663,-654.04301631,0.000179,2]
[401354448,1768151448672,-654.04301631,0.000179,2]
[401354450,1768151448682,-30918.0,0.000179,6]
[401354452,1768151448691,-654.04301631,0.000179,2]
[401354454,1768151448701,-654.04301631,0.000179,2]
[401354456,1768151448711,-654.04301631,0.000179,2]
[401354458,1768151448720,-654.04301631,0.000179,2]
[401354460,1768151448729,-654.04301631,0.000179,2]
[401354462,1768151448739,-654.04301631,0.000179,2]
[401354464,1768151448748,-654.04301631,0.000179,2]
[401354466,1768151448757,-654.04301631,0.000179,2]
[401354468,1768151448767,-654.04301631,0.000179,2]
[401354470,1768151448776,-654.04301631,0.000179,2]
[401354472,1768151448785,-654.04301631,0.000179,2]
[401354474,1768151448795,-263.81978441,0.000179,3]
[401354476,1768151448804,-1000.0,0.000179,2]
[401354478,1768151448813,-18231.61993099,0.000179,2]
[401354480,1768151448823,-1000.0,0.00017902,2]
[401354482,1768151448833,-1000.0,0.0001791,2]
[401354484,1768151448842,-1552.15,0.0001791,2]
[401354486,1768151448852,-1801.26,0.00017937,2]
[401354489,1768151448862,-1000.0,0.00017945,2]
[401354491,1768151448871,-1000.0,0.00017951,2]
[401354493,1768151448881,-1000.0,0.00017964,2]
[401354495,1768151448891,-1000.0,0.00017969,2]
[401354497,1768151448901,-300.0,0.00017972,2]
[401354499,1768151448916,-28016.0,0.00017973,2]
[401354501,1768151448925,-498.39272947,0.00017973,2]
[401354503,1768151448935,-500.0,0.00017973,2]
[401354505,1768151448944,-500.0,0.00017973,2]
[401354507,1768151448953,-500.0,0.00017973,2]
[401354510,1768151448963,-500.0,0.00017973,2]
[401354512,1768151448973,-500.0,0.00017973,2]
[401354514,1768151448982,-500.0,0.00017973,2]
[401354516,1768151448991,-380.05360747,0.00017973,2]
[401354517,1768151449001,-500.0,0.00017973,2]
[401354519,1768151449011,-500.0,0.00017973,2]
[401354521,1768151449020,-500.0,0.00017973,2]
[401354524,1768151449029,-500.0,0.00017973,2]
[401354526,1768151449039,-500.0,0.00017973,2]
[401354527,1768151449048,-500.0,0.00017973,2]
[401354530,1768151449058,-500.0,0.00017973,2]
[401354532,1768151449067,-500.0,0.00017973,2]
[401354534,1768151449077,-500.0,0.00017973,2]
[401354536,1768151449086,-500.0,0.00017973,2]
[401354538,1768151449095,-500.0,0.00017973,2]
[401354540,1768151449104,-500.0,0.00017973,2]
[401354542,1768151449114,-500.0,0.00017973,2]
[401354544,1768151449123,-500.0,0.00017973,2]
[401354546,1768151449133,-1000.0,0.00017973,2]
[401354548,1768151449142,-500.0,0.00017983,2]
[401354550,1768151449151,-174.1373823,0.00017983,2]
[401354552,1768151449161,-1127.582295,0.0001799,2]
[401354554,1768151449171,-1127.582295,0.0001799,2]
[401354556,1768151449182,-1000.0,0.00017991,2]
[401354558,1768151449191,-1000.0,0.00017994,2]
[401354560,1768151449200,-1000.0,0.00017994,2]
[401354562,1768151449209,-166.9455236,0.00017999,2]
[401354564,1768151449220,-300.0,0.00017999,2]
[401354566,1768151449229,-300.0,0.00017999,2]
[401354568,1768151449238,-300.0,0.00017999,2]
[401354570,1768151449250,-500.0,0.00017999,2]
[401354572,1768151449259,-500.0,0.00017999,2]
[401354574,1768151449269,-500.0,0.00017999,2]
[401354576,1768151449279,-415.1732756,0.00017999,2]
[401354578,1768151449288,-158.0,0.00018,2]
[401354580,1768151449298,-158.0,0.00018,2]
[401354582,1768151449307,-151.0,0.00018,2]
[401354584,1768151449317,-151.0,0.00018,2]
[401354587,1768151449327,-151.0,0.00018,2]
[401354589,1768151449337,-151.0,0.00018,2]
[401354591,1768151449346,-152.0,0.00018,2]
[401354593,1768151449355,-152.0,0.00018,2]
[401354595,1768151449365,-150.0,0.00018,2]
[401354597,1768151449375,-150.0,0.00018,2]
[401354599,1768151449384,-150.0,0.00018,2]
[401354601,1768151449393,-150.0,0.00018,2]
[401354603,1768151449405,-150.0,0.00018,2]
[401354605,1768151449416,-150.0,0.00018,2]
[401354607,1768151449425,-178.176763,0.00018,2]
[401354609,1768151449435,-150.4343184,0.00018,2]
[401354611,1768151449446,-150.0,0.00018,2]
[401354613,1768151449455,-150.37867968,0.00018,2]
[401354615,1768151449465,-150.00000001,0.00018,2]
[401354617,1768151449474,-150.0,0.00018,2]
[401354619,1768151449483,-150.0,0.00018,2]
[401354621,1768151449493,-247.12115075,0.00018,2]
[401354623,1768151449503,-491634.9705352,0.00018,2]
[401354679,1768151450078,-2095.592,0.00018,2]
[401354743,1768151450688,-1.7e-07,0.00018,2]
[401354793,1768151451205,-179.52393832,0.00015197,2]
[401354794,1768151451216,-671.75072273,0.00017719,2]
[401354795,1768151451228,-417.77152343,0.00017719,2]
[401354798,1768151451243,-735.24608787,0.00017719,2]
[401354800,1768151451257,-447.27153168,0.00017719,2]
[401354802,1768151451268,-3152.19488824,0.00017719,2]
[401354804,1768151451279,-1130.76524605,0.00017719,2]
[401354806,1768151451289,-1493.308871,0.00017865,2]
[401354809,1768151451299,-733.26669,0.00017865,2]
[401354810,1768151451308,-1493.308871,0.00017865,2]
[401354813,1768151451318,-1493.308871,0.00017882,2]
[401354815,1768151451328,-733.26669,0.00017882,2]
[401354816,1768151451337,-1493.308871,0.00017882,2]
[401354819,1768151451347,-4174.25060117,0.00018,2]
[401354835,1768151451496,-312.96,0.00017865,2]
[401354837,1768151451507,-420.30669,0.00017865,2]
[401354839,1768151451517,-1493.308871,0.00017865,2]
[401354841,1768151451527,-733.26669,0.00017882,2]
[401354843,1768151451536,-1493.308871,0.00017882,2]
[401354845,1768151451545,-1419.67260834,0.00018,2]
[401354847,1768151451556,-1012.68459326,0.00018,2]
[401354880,1768151451855,-418372.40641965,0.00018,2]
[401354882,1768151451870,-22000.0,0.00018,2]
[401354884,1768151451883,-619.94646908,0.00018,2]
[401354887,1768151451894,-345.69,0.00018,2]
[401354898,1768151451992,-3607.02658723,0.00016655,2]
[401354900,1768151452005,-20067.08395433,0.00016655,2]
[401354902,1768151452015,-733.26669,0.00017865,2]
[401354904,1768151452024,-733.26669,0.00017882,2]
[401354906,1768151452035,-2382.80755073,0.00018,2]
[401354908,1768151452048,-1507.70376957,0.00018,2]
[401354911,1768151452059,-466.81370507,0.00018,2]
[401354915,1768151452096,-928.39044394,0.00018,2]
[401354918,1768151452111,-21322.22889226,0.00018,2]
[401354920,1768151452121,-77145.3342919,0.00018,2]
[401354922,1768151452134,-9428.85092983,0.00018,2]
[401354925,1768151452148,-11825.00006151,0.00018,2]
[401354927,1768151452160,-61236.09761277,0.00018,2]
[401354929,1768151452173,-291.637896,0.00018,2]
[401354933,1768151452199,-90.51855349,0.00018,2]
[401355491,1768151545695,1500.0,0.000149,5]
[401355511,1768151637232,168.88082288,0.00014998,2]
[401355512,1768151638856,833.687963,0.00014982,2]
[401355522,1768151694765,432.29573275,0.00014998,2]
[401355523,1768151698334,432.29573275,0.00014998,2]
[401355528,1768151784745,9910.47407229,0.00014998,2]
[401355531,1768151819132,3346.94196521,0.00014998,2]
[401355539,1768151848898,324.22179951,0.00014998,2]
[401355540,1768151850939,324.22179951,0.00014998,2]
[401355557,1768151987410,1011.261,0.00014795,2]
[401355560,1768152004031,243.16634965,0.00014998,2]
[401355570,1768152016208,243.16634965,0.00014998,2]
[401355581,1768152061217,4500.0,0.000149,5]
[401355585,1768152095968,19800.0,0.000149,5]
[401355667,1768152125296,166.66,0.00014783,2]
[401355681,1768152165249,182.37476222,0.00014998,2]
[401355682,1768152168382,1101.0,0.00014448,2]
[401355683,1768152170258,18681.49201573,0.00014998,2]
[401355684,1768152172342,182.37476222,0.00014998,2]
[401355685,1768152173450,1101.0,0.00014017,2]
[401355686,1768152178143,830.08681167,0.00014017,2]
[401355717,1768152322513,-273.97680057,0.00015085,2]
[401355718,1768152322546,-300.0,0.00015085,2]
[401355719,1768152322580,-250.0,0.00015085,2]
[401355720,1768152322611,-2500.0,0.00015085,2]
[401355721,1768152322642,-608.19660126,0.00015085,2]
[401355722,1768152322674,-300.0,0.00015085,2]
[401355723,1768152322706,-195.0,0.00015086,2]
[401355724,1768152322738,-1200.0,0.00015086,2]
[401355725,1768152322782,-2522.28502959,0.00015087,2]
[401355726,1768152322817,-500.0,0.00015087,2]
[401355727,1768152322850,-300.0,0.00015089,2]
[401355728,1768152322882,-184.52514493,0.00015089,2]
[401355729,1768152322914,-300.0,0.00015093,2]
[401355730,1768152322946,-300.0,0.00015094,2]
[401355731,1768152322978,-166.66,0.00015094,2]